bitfinex-derivatives/quotes_ETHF0:USTF0_20241007
["timestamp","ask_amount","ask_price","bid_price","bid_amount"]
[1728261940661,4.36,2478.8,2478.0,3.2078]
[1728261940965,4.36,2478.8,2477.8,0.28251]
[1728261940966,4.36,2478.8,2478.3,3.2078]
[1728261942169,40.8,2479.3,2478.3,3.2078]
[1728261942356,0.70569,2480.0,2478.9,3.2078]
[1728261942357,0.5829,2479.7,2478.9,3.2078]
[1728261942562,5.5148,2480.0,2479.2,3.2078]
[1728261942563,4.9396,2480.0,2479.2,3.2078]
[1728261942759,5.22187,2480.0,2479.2,3.2078]
[1728261942963,0.28229,2479.8,2479.2,3.2078]
[1728261943163,4.36,2479.6,2479.2,3.2078]
[1728261943371,4.36,2479.6,2478.4,1.7109]
[1728261943372,0.2824,2478.9,2478.5,3.2078]
[1728261943662,0.70584,2479.5,2478.5,3.2078]
[1728261943663,4.36,2479.0,2478.5,3.2078]
[1728261943862,0.28243,2478.6,2478.5,3.2078]
[1728261944064,4.36,2479.0,2478.5,3.2078]
[1728261944258,0.2824,2478.9,2478.5,3.2078]
[1728261944455,0.28238,2479.1,2478.5,3.2078]
[1728261944755,0.2824,2478.9,2478.5,3.2078]
[1728261945759,0.28241,2478.8,2478.5,3.2078]
[1728261945957,4.6424,2478.9,2478.5,3.2078]
[1728261946169,0.2824,2478.8,2478.5,3.2078]
[1728261946363,0.28242,2478.7,2478.5,3.2078]
[1728261946563,4.36,2478.9,2478.5,3.2078]
[1728261946758,0.28243,2478.6,2478.5,3.2078]
[1728261947163,0.28246,2478.4,2477.9,3.2078]
[1728261947358,4.36,2478.9,2477.9,3.2078]
[1728261947570,4.36,2478.1,2477.9,3.2078]
[1728261947763,4.36,2478.1,2477.5,0.5906]
[1728261947764,0.2825,2478.0,2477.6,3.2078]
[1728261947963,0.28251,2477.9,2477.6,3.2078]
[1728261948466,4.36,2478.1,2477.6,3.2078]
[1728261948765,0.28253,2477.8,2477.6,3.2078]
[1728261948970,0.28251,2477.9,2477.6,3.2078]
[1728261949568,0.28251,2477.9,2477.4,3.2078]
[1728261950169,0.28253,2477.8,2477.4,3.2078]
[1728261951468,1.0998,2478.4,2477.5,4.036]
[1728261951669,4.36,2478.5,2477.7,3.2078]
[1728261951870,0.28245,2478.4,2477.7,3.2078]
[1728261952266,0.28247,2478.3,2477.7,3.2078]
[1728261952469,0.28245,2478.4,2477.7,3.2078]
[1728261952670,0.28248,2478.2,2477.8,0.5832]
[1728261952870,4.36,2478.5,2477.8,0.5832]
[1728261953065,0.28246,2478.3,2477.8,0.5832]
[1728261953364,4.36,2478.5,2477.8,0.5832]
[1728261953773,4.64245,2478.5,2477.8,0.5832]
[1728261954071,4.36,2478.5,2477.8,1.1578]
[1728261954471,4.36,2478.5,2477.7,3.2078]
[1728261954472,0.28247,2478.3,2477.7,3.2078]
[1728261954675,4.36,2478.1,2477.7,3.2078]
[1728261955066,0.2825,2478.0,2477.7,3.2078]
[1728261955267,0.28252,2477.8,2477.2,3.2078]
[1728261955470,4.36,2478.1,2477.2,3.2078]
[1728261955770,0.28254,2477.7,2477.2,3.2078]
[1728261955971,5.06623,2478.1,2477.2,3.2078]
[1728261956167,0.28254,2477.7,2477.2,3.2078]
[1728261957180,0.28252,2477.8,2477.5,3.2078]
[1728261957476,4.36,2478.1,2477.5,3.2078]
[1728261957779,0.28251,2477.9,2477.5,3.2078]
[1728261958871,0.28253,2477.7,2477.5,3.2078]
[1728261959073,0.28252,2477.8,2477.5,3.2078]
[1728261959271,0.28254,2477.6,2477.2,3.2078]
[1728261959480,0.28251,2477.9,2477.5,3.2078]
[1728261959685,4.36,2478.1,2477.5,3.2078]
[1728261959981,0.2825,2478.0,2477.5,3.2078]
[1728261960183,0.28251,2477.9,2477.5,3.2078]
[1728261960680,0.28253,2477.8,2477.5,3.2078]
[1728261961374,3.88,2478.0,2477.5,3.2078]
[1728261962181,3.88,2477.7,2477.2,3.2078]
[1728261962384,0.28257,2477.4,2477.2,3.2078]
[1728261962583,0.28257,2477.3,2477.2,3.2078]
[1728261962882,3.88,2477.7,2477.2,3.2078]
[1728261962883,4.16253,2477.7,2477.2,3.2078]
[1728261963077,3.2078,2478.0,2477.2,3.2078]
[1728261963078,3.88,2478.0,2477.2,3.2078]
[1728261963382,3.88,2478.0,2477.5,3.2078]
[1728261963584,3.88,2478.0,2477.6,0.5407]
[1728261964075,0.28248,2478.2,2477.7,4.036]
[1728261964274,0.28247,2478.2,2477.6,1.0812]
[1728261964671,4.16247,2478.3,2477.8,3.2078]
[1728261964880,3.88,2478.3,2477.8,3.2078]
[1728261965082,0.2825,2478.0,2477.6,1.0812]
[1728261965274,0.2825,2478.0,2477.6,0.5407]
[1728261965275,3.88,2478.0,2477.6,0.5407]
[1728261965670,3.88,2478.3,2477.6,3.7485]
[1728261966279,0.28248,2478.2,2477.6,3.7485]
[1728261967076,4.16247,2478.3,2477.6,3.7485]
[1728261967784,0.28248,2478.2,2477.6,3.7485]
[1728261968669,3.88,2478.3,2477.9,3.2078]
[1728261968870,0.28245,2478.5,2477.9,3.2078]
[1728261969276,0.28245,2478.4,2477.9,3.2078]
[1728261970076,3.88,2478.6,2477.9,3.2078]
[1728261970077,0.28244,2478.5,2477.9,3.2078]
[1728261971180,3.88,2478.6,2477.9,3.2078]
[1728261971382,0.28246,2478.4,2477.9,3.2078]
[1728261971571,3.88,2478.6,2477.9,3.2078]
[1728261971572,0.28246,2478.3,2477.9,3.2078]
[1728261971777,3.88,2478.3,2477.9,3.2078]
[1728261972087,4.16243,2478.6,2478.2,3.2078]
[1728261972274,3.88,2478.9,2478.2,3.2078]
[1728261972478,0.2824,2478.9,2478.5,3.2078]
[1728261972887,0.28241,2478.8,2478.5,3.2078]
[1728261973383,5.16017365,2479.1,2478.6,4.0344]
[1728261973684,0.28237,2479.2,2478.8,3.2078]
[1728261973880,0.28237,2479.2,2478.9,4.0336]
[1728261974083,0.28237,2479.1,2478.8,3.2078]
[1728261974286,0.28239,2479.0,2478.8,3.2078]
[1728261974476,5.16017365,2479.4,2478.8,3.2078]
[1728261974682,5.16017365,2479.4,2479.1,3.2078]
[1728261974875,5.44249365,2479.6,2479.1,3.2078]
[1728261975081,1.1476,2480.0,2479.4,3.2078]
[1728261975082,5.16017365,2479.9,2479.4,3.2078]
[1728261975486,4.16226,2480.1,2479.5,0.5506]
[1728261975487,0.28226,2480.1,2479.5,0.5506]
[1728261976384,0.28225,2480.2,2479.5,0.5506]
[1728261976686,41.08225,2480.2,2479.7,3.2078]
[1728261977194,0.28226,2480.1,2479.7,3.2078]
[1728261977583,3.88,2480.4,2479.7,3.2078]
[1728261977780,5.16017365,2480.6,2480.1,3.2078]
[1728261977979,5.16017365,2480.9,2480.4,3.2078]
[1728261978283,0.5893,2481.4,2480.5,0.2822]
[1728261978284,5.16017365,2481.2,2480.5,0.2822]
[1728261978592,3.88,2481.3,2480.7,3.2078]
[1728261978890,0.28214,2481.2,2480.7,3.2078]
[1728261979292,0.28215,2481.1,2480.7,3.2078]
[1728261979486,3.88,2481.3,2480.7,3.2078]
[1728261979896,3.88,2480.8,2480.2,3.2078]
[1728261980290,3.88,2481.4,2480.5,3.2078]
[1728261980482,3.88,2481.6,2481.1,3.2078]
[1728261981182,0.87187,2481.8,2481.1,3.2078]
[1728261981489,0.87187,2481.8,2480.8,0.86857]
[1728261981490,0.28207,2481.8,2481.4,3.2078]
[1728261981992,0.28208,2481.7,2481.4,3.2078]
[1728261982190,0.28207,2481.8,2481.4,3.2078]
[1728261982488,4.4706,2481.9,2481.4,3.2078]
[1728261982689,0.28207,2481.8,2481.4,3.2078]
[1728261983087,4.4706,2481.9,2481.4,3.2078]
[1728261983088,4.75266,2481.9,2481.4,3.2078]
[1728261983289,3.88,2481.9,2481.4,3.2078]
[1728261983590,0.5471,2482.8,2481.8,3.2078]
[1728261983591,3.88,2482.6,2481.8,3.2078]
[1728261983792,3.88,2482.6,2482.1,3.2078]
[1728261983995,4.16192,2483.1,2482.4,3.2078]
[1728261984293,3.88,2483.1,2482.4,3.2078]
[1728261984488,3.88,2482.8,2482.2,1.1002]
[1728261984692,0.28198,2482.6,2482.2,0.5569]
[1728261984992,4.45317,2483.3,2482.1,3.1578]
[1728261984993,3.88,2482.5,2482.1,3.1578]
[1728261985192,0.5406,2483.3,2481.6,4.321]
[1728261985193,0.282,2482.4,2481.6,4.321]
[1728261985490,0.70486,2482.9,2481.9,3.2078]
[1728261985491,3.88,2482.5,2481.9,3.2078]
[1728261985692,3.88,2482.2,2481.4,3.2078]
[1728261985893,0.5379,2482.8,2481.4,3.2078]
[1728261985894,0.5703,2482.4,2481.4,3.2078]
[1728261986093,0.5379,2482.8,2482.0,3.2078]
[1728261986399,0.81985,2482.8,2482.0,3.2078]
[1728261986892,0.28197,2482.6,2482.0,3.2078]
[1728261987086,0.28196,2482.7,2482.3,3.2078]
[1728261987290,0.28198,2482.6,2482.3,3.2078]
[1728261987588,0.5379,2482.8,2482.3,3.2078]
[1728261987589,0.28199,2482.4,2482.3,3.2078]
[1728261987908,3.88,2482.7,2482.3,3.2078]
[1728261987909,0.28198,2482.6,2482.3,3.2078]
[1728261988395,3.88,2482.7,2482.3,3.2078]
[1728261988698,4.16196,2482.7,2482.3,3.2078]
[1728261988894,0.28197,2482.6,2482.3,3.2078]
[1728261989584,3.88,2482.7,2482.3,3.2078]
[1728261990289,4.16196,2482.7,2482.3,3.2078]
[1728261990494,3.88,2482.7,2482.3,3.2078]
[1728261991994,0.28197,2482.6,2482.3,3.2078]
[1728261992225,0.5379,2482.8,2482.3,3.2078]
[1728261992721,0.28196,2482.7,2482.3,3.2078]
[1728261992924,0.81986,2482.8,2482.3,3.2078]
[1728261993710,40.8,2483.1,2482.4,4.028]
[1728261993920,0.28186,2483.6,2483.0,3.2078]
[1728261994227,0.00607236,2484.0,2483.3,3.2078]
[1728261994518,0.00607236,2484.0,2483.6,3.2078]
[1728261994519,0.28185,2483.7,2483.6,3.2078]
[1728261994718,0.28789236,2484.0,2483.2,4.0264]
[1728261994934,0.70428,2484.9,2483.2,4.0264]
[1728261994935,1.30550467,2484.1,2483.9,3.2078]
[1728261995120,3.2078,2484.6,2484.0,4.0256]
[1728261995319,0.28178,2484.4,2483.9,3.2078]
[1728261995513,3.2078,2484.6,2483.9,7.2334]
[1728261995721,0.0064177,2485.1,2484.4,3.2078]
[1728261996123,0.0064177,2485.1,2484.7,3.2078]
[1728261996421,0.0064177,2485.1,2485.0,3.2078]
[1728261996626,0.2881077,2485.1,2484.7,3.2078]
[1728261996820,0.28172,2484.8,2484.4,3.2078]
[1728261997024,3.8864177,2485.1,2484.1,3.2078]
[1728261997226,0.28173,2484.8,2484.1,3.2078]
[1728261997435,0.0064177,2485.1,2484.1,3.2078]
[1728261997633,0.0064177,2485.1,2484.4,3.2078]
[1728261998236,0.2817,2485.0,2484.4,3.2078]
[1728261998418,0.0064177,2485.1,2484.4,3.2078]
[1728261998816,0.0064177,2485.1,2484.7,3.2078]
[1728261999044,0.28172,2484.8,2484.7,3.2078]
[1728261999322,0.0064177,2485.1,2484.7,3.2078]
[1728261999323,0.28171,2484.9,2484.7,3.2078]
[1728261999511,0.0064177,2485.1,2484.7,3.2078]
[1728261999712,0.28171,2485.0,2484.7,3.2078]
[1728262000009,0.28171,2485.0,2483.9,0.5552]
[1728262000010,0.0064177,2485.1,2484.3,3.2078]
[1728262000201,3.2142177,2485.1,2484.3,3.2078]
[1728262000502,0.28174,2484.7,2484.3,3.2078]
[1728262000911,0.0064177,2485.1,2484.3,3.2078]
[1728262001110,0.28173,2484.7,2484.3,3.2078]
[1728262002109,0.28176,2484.5,2484.3,3.2078]
[1728262002804,3.88,2484.9,2483.9,3.2078]
[1728262003010,0.28181,2484.0,2483.9,3.2078]
[1728262003201,0.28183,2483.9,2483.5,0.5484]
[1728262003400,40.8,2484.2,2483.5,0.5484]
[1728262003597,0.28184,2483.8,2483.4,3.2078]
[1728262003796,40.8,2484.2,2483.4,3.2078]
[1728262003999,0.28187,2483.5,2483.4,3.2078]
[1728262004207,0.70451,2484.1,2483.4,7.2342]
[1728262004398,0.28184,2483.8,2483.4,3.2078]
[1728262005305,0.28182,2484.0,2483.4,3.2078]
[1728262005505,0.2818,2484.1,2483.7,3.2078]
[1728262005809,0.28184,2483.8,2483.4,3.2078]
[1728262006810,0.28183,2483.9,2483.4,3.2078]
[1728262007313,40.8,2484.2,2483.4,3.2078]
[1728262008009,0.28184,2483.8,2483.4,3.2078]
[1728262008610,40.8,2484.2,2483.4,3.2078]
[1728262008909,0.28183,2483.9,2483.4,3.2078]
[1728262009308,40.8,2484.2,2483.4,3.2078]
[1728262009515,0.28184,2483.8,2483.4,3.2078]
[1728262010206,0.28183,2483.9,2483.4,3.2078]
[1728262010415,40.8,2484.2,2483.4,3.2078]
[1728262010620,0.28184,2483.8,2483.4,3.2078]
[1728262011712,40.8,2484.2,2483.7,3.2078]
[1728262011907,0.5629,2484.4,2483.7,3.2078]
[1728262012225,0.28173,2484.8,2484.3,3.2078]
[1728262012508,0.28173,2484.7,2484.3,3.2078]
[1728262012709,40.8,2485.0,2484.3,3.2078]
[1728262012916,0.28174,2484.7,2484.3,3.2078]
[1728262013613,0.28176,2484.5,2484.3,3.2078]
[1728262013813,0.28178,2484.4,2483.9,3.2078]
[1728262014209,3.88,2484.9,2484.2,3.2078]
[1728262014210,0.28174,2484.7,2484.2,3.2078]
[1728262014406,3.88,2484.9,2484.2,3.2078]
[1728262014407,0.28175,2484.6,2484.2,3.2078]
[1728262014707,3.88,2484.9,2484.2,3.2078]
[1728262014907,0.28173,2484.8,2484.2,3.2078]
[1728262015411,0.28176,2484.5,2484.2,3.2078]
[1728262015725,3.88,2484.9,2484.2,3.2078]
[1728262015909,0.28176,2484.5,2484.2,3.2078]
[1728262016508,44.71207,2485.0,2484.0,3.2078]
[1728262016509,3.88,2484.6,2484.0,3.2078]
[1728262016812,44.71207,2485.0,2482.1,3.88]
[1728262016813,0.28184,2483.8,2483.4,3.2078]
[1728262017303,3.88,2484.0,2483.4,3.2078]
[1728262017711,0.28185,2483.7,2483.4,3.2078]
[1728262017909,0.28184,2483.8,2483.4,3.2078]
[1728262018416,0.28179,2484.3,2483.7,3.2078]
[1728262018620,4.4402,2484.6,2483.7,3.2078]
[1728262018914,0.28179,2484.2,2483.7,3.2078]
[1728262019115,40.8,2484.4,2483.7,3.2078]
[1728262019910,3.88,2484.3,2483.7,3.2078]
[1728262020212,3.88,2484.3,2483.3,3.2078]
[1728262020414,3.88,2484.3,2483.4,3.2078]
[1728262020912,0.28185,2483.7,2483.4,3.2078]
[1728262021118,0.28187,2483.5,2483.4,3.2078]
[1728262021318,0.5871,2483.9,2483.4,3.2078]
[1728262021915,5.06322,2484.5,2483.4,3.2078]
[1728262021916,0.28181,2484.1,2483.4,3.2078]
[1728262022210,3.88,2484.3,2483.4,3.2078]
[1728262022415,41.3871,2484.4,2483.4,3.2078]
[1728262022716,41.3871,2484.4,2482.8,1.1494]
[1728262022717,0.5871,2484.4,2483.7,3.2078]
[1728262023022,0.28178,2484.3,2483.7,3.2078]
[1728262023615,0.5871,2484.4,2483.7,3.2078]
[1728262023917,0.5871,2484.4,2484.0,3.2078]
[1728262024112,4.58431,2484.9,2482.8,1.85426]
[1728262024113,0.5693,2485.0,2484.3,3.2078]
[1728262024315,1.1165,2485.0,2484.3,3.2078]
[1728262024518,3.88,2484.9,2484.3,3.2078]
[1728262024714,7.9048,2484.9,2484.0,3.2078]
[1728262024913,3.88,2484.6,2484.0,3.2078]
[1728262025119,0.28177,2484.4,2484.0,3.2078]
[1728262025427,4.3243,2485.0,2484.0,3.2078]
[1728262025428,3.88,2484.9,2484.0,3.2078]
[1728262025622,0.28178,2484.4,2484.0,3.2078]
[1728262025924,3.88,2484.9,2484.0,3.2078]
[1728262025925,0.28174,2484.7,2484.0,3.2078]
[1728262026115,0.28177,2484.4,2484.0,3.2078]
[1728262026418,0.70431,2484.8,2484.0,3.2078]
[1728262026619,0.28177,2484.4,2484.0,3.2078]
[1728262026920,0.28178,2484.3,2484.0,3.2078]
[1728262027224,4.58437,2484.6,2484.0,3.2078]
[1728262027517,0.28177,2484.4,2484.2,3.2078]
[1728262027719,0.28176,2484.5,2484.2,3.2078]
[1728262028023,3.91208,2484.9,2483.9,3.2078]
[1728262028024,0.28178,2484.3,2483.9,3.2078]
[1728262028318,3.88,2484.7,2483.9,3.2078]
[1728262028514,0.28177,2484.4,2483.9,3.2078]
[1728262028718,3.88,2484.7,2483.9,3.2078]
[1728262028719,0.28178,2484.3,2483.9,3.2078]
[1728262028910,0.28172,2484.8,2483.9,3.2078]
[1728262029111,3.2078,2484.9,2483.9,3.2078]
[1728262029319,0.28174,2484.7,2483.9,3.2078]
[1728262030021,0.28175,2484.6,2483.9,3.2078]
[1728262030215,0.28172,2484.9,2484.3,3.2078]
[1728262030412,0.28173,2484.8,2484.3,3.2078]
[1728262031218,4.9965,2485.0,2484.3,3.2078]
[1728262031522,0.28172,2484.9,2484.3,3.2078]
[1728262031719,4.9965,2485.0,2484.3,3.2078]
[1728262032016,0.28174,2484.7,2484.3,3.2078]
[1728262032414,8.2043,2485.0,2484.3,3.2078]
[1728262032616,0.28173,2484.8,2484.3,3.2078]
[1728262033021,0.28171,2484.9,2484.3,3.2078]
[1728262033220,1.1165,2485.0,2484.3,3.2078]
[1728262033415,0.28176,2484.6,2484.3,3.2078]
[1728262033622,4.9965,2485.0,2483.9,3.2078]
[1728262033818,4.9965,2485.0,2483.8,0.562]
[1728262033819,4.9965,2485.0,2484.2,3.2078]
[1728262034021,0.28174,2484.7,2484.2,3.2078]
[1728262034324,0.28173,2484.8,2484.2,3.2078]
[1728262034726,0.28174,2484.7,2484.1,3.2078]
[1728262034922,3.14,2484.9,2484.1,3.2078]
[1728262035122,0.28172,2484.8,2484.1,3.2078]
[1728262035424,3.84429,2484.9,2484.4,3.2078]
[1728262035425,0.28177,2484.5,2484.4,3.2078]
[1728262035728,0.28171,2484.9,2484.4,3.2078]
[1728262035916,1.1165,2485.0,2484.4,3.2078]
[1728262035917,0.28173,2484.8,2484.4,3.2078]
[1728262036322,1.1165,2485.0,2484.4,3.2078]
[1728262036623,3.14,2484.9,2484.4,3.2078]
[1728262037327,0.28174,2484.7,2484.4,3.2078]
[1728262037524,0.28175,2484.6,2484.4,3.2078]
[1728262037832,0.28176,2484.5,2484.4,3.2078]
[1728262038027,0.70431,2484.8,2483.8,0.562]
[1728262038028,0.2818,2484.2,2483.8,3.2078]
[1728262038330,0.70439,2484.6,2483.8,3.2078]
[1728262038331,0.28182,2484.0,2483.8,3.2078]
[1728262038723,0.5457,2484.3,2483.8,3.2078]
[1728262039027,3.14,2484.7,2484.1,3.2078]
[1728262039229,0.28177,2484.4,2484.1,3.2078]
[1728262039416,40.8,2484.3,2483.8,3.2078]
[1728262039621,0.28182,2484.0,2483.8,3.2078]
[1728262039826,3.84443,2484.4,2483.8,3.2078]
[1728262039827,0.28181,2484.1,2483.8,3.2078]
[1728262040024,0.28178,2484.3,2483.8,3.2078]
[1728262040223,40.8,2484.1,2483.8,3.2078]
[1728262040433,0.28182,2484.0,2483.8,3.2078]
[1728262041027,0.28182,2483.9,2483.8,3.2078]
[1728262041230,0.28177,2484.4,2483.8,3.2078]
[1728262041622,0.28181,2484.1,2483.8,3.2078]
[1728262041828,43.94,2484.3,2483.8,3.2078]
[1728262042034,0.28182,2484.0,2483.8,3.2078]
[1728262042222,43.94,2484.3,2483.8,3.2078]
[1728262042628,43.94,2484.3,2483.4,3.14]
[1728262042629,0.28185,2483.7,2483.4,3.2078]
[1728262042832,3.14,2483.9,2483.4,3.2078]
[1728262043029,3.14,2483.9,2483.2,3.2078]
[1728262043030,3.14,2483.6,2483.2,3.2078]
[1728262043332,0.28193,2483.0,2482.9,3.2078]
[1728262043532,0.28193,2483.0,2482.8,0.53353679]
[1728262043533,0.28194,2482.9,2482.8,0.53353679]
[1728262043733,4.30914,2482.9,2482.8,0.53353679]
[1728262043928,10.30914,2482.9,2482.8,0.53353679]
[1728262044228,3.2078,2483.0,2482.2,3.14]
[1728262044427,0.28189,2483.4,2482.5,3.2078]
[1728262044632,3.48969,2483.4,2482.6,0.5447]
[1728262044835,0.5422,2483.5,2482.6,0.5447]
[1728262045032,3.2078,2483.4,2482.6,0.5447]
[1728262045333,3.2078,2483.1,2482.1,3.2078]
[1728262045551,0.28197,2482.7,2482.1,3.2078]
[1728262046230,3.2078,2482.8,2482.1,3.2078]
[1728262046231,3.48975,2482.8,2482.1,3.2078]
[1728262046826,0.28196,2482.7,2482.1,3.2078]
[1728262047336,3.2078,2482.8,2482.1,3.2078]
[1728262047337,0.28199,2482.5,2482.1,3.2078]
[1728262047529,0.28197,2482.7,2482.1,3.2078]
[1728262047737,41.08198,2482.6,2482.1,3.2078]
[1728262048038,40.8,2482.6,2482.1,3.2078]
[1728262048735,0.28199,2482.5,2482.1,3.2078]
[1728262048933,40.8,2482.6,2482.1,3.2078]
[1728262049342,0.28199,2482.5,2482.1,3.2078]
[1728262049635,0.5716,2482.7,2482.1,3.2078]
[1728262050239,41.3716,2482.7,2482.1,3.2078]
[1728262051040,0.5716,2482.7,2482.1,3.2078]
[1728262051534,0.28197,2482.7,2482.1,3.2078]
[1728262051840,44.0078,2482.9,2482.1,3.2078]
[1728262052133,0.28197,2482.6,2482.1,3.2078]
[1728262052343,3.2078,2482.8,2482.1,3.2078]
[1728262052531,0.28201,2482.3,2482.1,3.2078]
[1728262052938,0.28202,2482.2,2482.1,3.2078]
[1728262053134,3.2078,2482.6,2482.1,3.2078]
[1728262053135,0.282,2482.4,2482.1,3.2078]
[1728262053344,44.67,2482.9,2482.1,3.2078]
[1728262053345,3.48976,2482.8,2482.1,3.2078]
[1728262053534,0.28196,2482.8,2482.1,3.2078]
[1728262053738,0.28196,2482.7,2482.1,3.2078]
[1728262054033,3.799,2483.0,2482.1,3.2078]
[1728262054034,0.28198,2482.5,2482.1,3.2078]
[1728262054230,3.87,2482.9,2482.1,3.2078]
[1728262054231,0.282,2482.4,2482.1,3.2078]
[1728262054427,3.87,2482.9,2482.1,3.2078]
[1728262054641,0.28199,2482.5,2482.1,3.2078]
[1728262055238,3.87,2482.9,2482.1,3.2078]
[1728262055542,3.87,2482.9,2481.8,0.5451]
[1728262055543,0.282,2482.4,2481.8,3.7529]
[1728262055742,0.28199,2482.4,2481.8,3.7529]
[1728262056133,0.28202,2482.2,2481.8,3.2078]
[1728262056444,0.70488,2482.8,2481.3,1.1074]
[1728262056445,3.87,2482.3,2481.4,3.2078]
[1728262056638,0.28203,2482.1,2481.4,3.2078]
[1728262057242,3.87,2482.3,2481.4,3.2078]
[1728262057436,0.28202,2482.2,2481.4,3.2078]
[1728262058338,0.28201,2482.3,2481.4,3.2078]
[1728262058638,3.7559,2482.4,2481.7,3.2078]
[1728262059233,0.28202,2482.2,2481.7,3.2078]
[1728262059439,4.0379,2482.4,2481.7,3.2078]
[1728262059635,4.0379,2482.4,2482.0,3.2078]
[1728262059636,3.2078,2482.4,2482.0,3.2078]
[1728262059839,3.48975,2482.8,2482.0,3.2078]
[1728262060040,0.28197,2482.7,2482.1,0.5499]
[1728262060942,3.2078,2482.8,2482.1,0.5499]
[1728262060943,0.28197,2482.6,2482.1,0.5499]
[1728262061143,3.2078,2482.8,2482.1,0.5499]
[1728262061347,0.28201,2482.3,2481.7,3.2078]
[1728262061538,4.57491,2482.7,2481.7,3.48987]
[1728262061539,0.28198,2482.6,2481.7,3.48987]
[1728262061741,0.28198,2482.6,2482.0,3.2078]
[1728262061940,3.48978,2482.6,2482.0,3.2078]
[1728262062339,0.282,2482.4,2482.0,3.2078]
[1728262062547,0.28201,2482.3,2481.7,3.2078]
[1728262062747,0.28199,2482.5,2482.0,3.2078]
[1728262063344,0.28199,2482.4,2482.0,3.2078]
[1728262064652,0.28199,2482.5,2482.0,3.2078]
[1728262065045,3.2078,2482.6,2482.0,3.2078]
[1728262065544,0.28199,2482.5,2482.0,3.2078]
[1728262065953,0.28199,2482.4,2482.0,3.2078]
[1728262066150,0.282,2482.4,2482.0,3.2078]
[1728262066348,3.2078,2482.6,2482.0,3.2078]
[1728262066551,0.28201,2482.3,2482.0,3.2078]
[1728262066750,3.15,2482.2,2481.7,3.2078]
[1728262067152,3.15,2482.4,2481.7,3.2078]
[1728262067350,1.48080018,2483.2,2481.7,3.2078]
[1728262067351,3.2078,2483.6,2482.3,6.3578]
[1728262067652,5.91580484,2484.8,2483.4,3.2078]
[1728262067653,3.15,2484.3,2483.4,3.2078]
[1728262067945,3.91212,2484.8,2483.8,3.2078]
[1728262067946,3.15,2484.6,2483.8,3.2078]
[1728262068150,3.2078,2484.8,2483.8,3.2078]
[1728262068151,3.15,2484.3,2483.8,3.2078]
[1728262068546,3.15,2484.6,2483.8,3.2078]
[1728262068750,3.43175,2484.6,2483.8,3.2078]
[1728262069140,3.15,2484.6,2483.8,3.2078]
[1728262069344,3.15,2484.3,2483.5,3.2078]
[1728262069951,3.43179,2484.3,2483.5,3.2078]
[1728262070350,0.28179,2484.2,2483.5,3.2078]
[1728262070649,0.5646,2484.7,2483.5,3.2078]
[1728262070650,4.15177,2484.4,2483.5,3.2078]
[1728262070857,0.28177,2484.4,2483.5,3.2078]
[1728262071062,0.5646,2484.7,2483.9,3.2078]
[1728262071357,0.5836,2484.9,2484.2,3.2078]
[1728262071743,0.28172,2484.8,2484.2,3.2078]
[1728262072146,0.5836,2484.9,2483.9,3.2078]
[1728262072344,0.28174,2484.7,2483.9,3.2078]
[1728262072543,4.4536,2484.9,2483.9,3.2078]
[1728262072957,0.28175,2484.6,2483.9,3.2078]
[1728262073152,0.28174,2484.7,2483.9,3.2078]
[1728262073451,4.4536,2484.9,2483.9,3.2078]
[1728262073650,7.35954,2484.6,2483.9,3.2078]
[1728262073846,0.28177,2484.5,2483.9,3.2078]
[1728262074043,0.28177,2484.4,2483.9,3.2078]
[1728262074345,0.28176,2484.5,2483.9,3.2078]
[1728262074952,7.0778,2484.6,2483.9,3.2078]
[1728262075251,7.0778,2484.6,2483.4,0.5502]
[1728262075252,0.28179,2484.3,2483.6,3.2078]
[1728262075456,2.06703731,2484.9,2483.4,0.5502]
[1728262075457,0.5836,2484.9,2484.0,3.2078]
[1728262075659,0.0064177,2485.1,2484.3,3.2078]
[1728262075950,0.0064177,2485.1,2484.9,3.2078]
[1728262076452,3.2078,2487.1,2485.0,26.17925551]
[1728262076659,0.28148,2486.9,2486.3,3.2078]
[1728262076958,0.0630948,2486.8,2486.3,3.2078]
[1728262077154,0.0630948,2486.8,2486.0,3.2078]
[1728262077372,0.28148,2487.0,2486.3,3.2078]
[1728262077653,40.8,2487.2,2486.3,3.2078]
[1728262077858,0.06308285,2487.1,2486.3,3.2078]
[1728262078157,3.27088285,2487.1,2486.3,3.2078]
[1728262078454,3.2078,2487.1,2486.3,3.2078]
[1728262078655,44.28926,2487.1,2486.3,3.2078]
[1728262078954,7.0778,2486.8,2485.6,3.7697]
[1728262079158,0.28147,2487.0,2486.1,3.2078]
[1728262079364,40.8,2487.1,2486.1,3.2078]
[1728262079656,0.28148,2487.0,2486.1,3.2078]
[1728262080058,40.8,2487.1,2486.1,3.2078]
[1728262080278,40.8,2487.1,2486.4,3.2078]
[1728262080451,3.2078,2487.2,2486.4,3.2078]
[1728262080758,3.2078,2487.2,2486.7,3.2078]
[1728262081549,3.2578,2487.5,2487.0,3.2078]
[1728262081751,0.05,2487.5,2487.0,3.2078]
[1728262081952,3.2078,2488.0,2487.3,7.0778]
[1728262082258,3.2078,2488.0,2487.1,4.0208]